bitfinex-derivatives/quotes_ETHF0:USTF0_20250908
["timestamp","ask_amount","ask_price","bid_price","bid_amount"]
[1757371593150,0.7221,4319.5,4319.4,0.5587]
[1757371593343,0.7221,4319.5,4319.4,0.7688]
[1757371593548,0.7221,4319.5,4319.4,0.9735]
[1757371598159,0.8446,4319.5,4319.4,0.235]
[1757371598455,1.40499274,4319.5,4319.4,0.235]
[1757371598652,0.7221,4318.3,4317.7,3.2078]
[1757371598851,0.2013,4317.6,4317.5,0.863]
[1757371599954,0.7221,4317.6,4317.5,0.7385]
[1757371603254,0.7221,4317.6,4317.5,0.863]
[1757371607358,0.7221,4317.6,4317.3,0.235]
[1757371607547,0.7267,4317.4,4317.3,0.9585]
[1757371610360,0.7267,4317.4,4317.3,0.7486]
[1757371610760,3.9345,4317.4,4317.3,0.235]
[1757371611356,3.9345,4317.4,4317.3,0.7486]
[1757371611762,3.9345,4317.4,4317.3,0.4488]
[1757371612072,3.9345,4317.4,4317.3,0.235]
[1757371612456,3.9345,4317.4,4317.3,0.7486]
[1757371614462,3.9345,4317.4,4317.3,0.4488]
[1757371614664,3.9345,4317.4,4317.3,0.7486]
[1757371617066,4.0501,4317.4,4317.3,0.7486]
[1757371618669,4.0501,4317.4,4317.3,0.4488]
[1757371619464,4.0501,4317.4,4317.3,0.235]
[1757371619662,4.0501,4317.4,4317.3,0.7486]
[1757371619967,4.0501,4317.4,4317.3,0.4488]
[1757371620466,0.8423,4317.4,4317.3,0.4488]
[1757371620768,0.8423,4317.4,4317.3,0.7486]
[1757371621854,0.8423,4317.4,4317.3,0.235]
[1757371623467,0.8423,4317.4,4317.3,0.5348]
[1757371623965,0.8423,4317.4,4317.3,0.7486]
[1757371624860,0.8423,4317.4,4317.3,0.235]
[1757371625562,0.426,4316.3,4315.7,0.2998]
[1757371625761,0.426,4316.2,4316.1,0.2099]
[1757371625966,0.7267,4316.2,4316.1,0.7235]
[1757371635775,3.7238,4316.6,4316.5,0.8443]
[1757371636373,3.9345,4316.6,4316.5,0.8443]
[1757371636771,3.9345,4316.6,4316.5,0.7235]
[1757371638069,3.9345,4316.6,4316.5,0.5136]
[1757371638275,3.9345,4316.6,4316.5,0.2138]
[1757371638774,0.8228,4316.5,4316.4,0.234]
[1757371639268,0.4053,4315.8,4315.7,0.5172]
[1757371639466,0.6999,4315.8,4315.7,0.7512]
[1757371640073,0.6999,4315.8,4315.7,0.9502]
[1757371642368,0.8155,4315.8,4315.7,0.9502]
[1757371659380,0.3148,4315.8,4315.7,0.9502]
[1757371659586,0.1156,4315.8,4315.7,0.9502]
[1757371660076,1.23263611,4317.3,4315.7,5.59895]
[1757371660281,1.05652201,4316.9,4316.8,0.7162]
[1757371661081,1.26262201,4316.9,4316.8,0.7162]
[1757371663583,1.26260929,4316.9,4316.8,0.7162]
[1757371665680,1.26260929,4316.9,4316.7,0.234]
[1757371665880,1.26260929,4316.8,4316.7,0.234]
[1757371666484,1.26260929,4316.8,4316.7,0.4391]
[1757371668795,1.26260929,4316.8,4316.7,0.7507]
[1757371670394,0.6999,4316.8,4316.7,0.7507]
[1757371671197,1.26241007,4316.8,4316.7,0.7507]
[1757371671396,0.6999,4316.8,4316.7,0.7507]
[1757371671996,1.26261821,4316.8,4316.7,0.7507]
[1757371672694,1.26261821,4316.8,4315.9,0.3116]
[1757371672695,0.7095,4316.3,4315.9,0.3116]
[1757371672994,0.7095,4316.2,4316.1,0.5123]
[1757371675796,0.7095,4316.2,4316.1,0.2007]
[1757371676796,0.7095,4316.2,4316.0,0.234]
[1757371677887,0.7095,4316.2,4316.0,0.5456]
[1757371678093,0.2988,4316.1,4316.0,0.5456]
[1757371678298,0.7095,4316.1,4316.0,0.7463]
[1757371680101,0.7095,4316.1,4316.0,0.9453]
[1757371681896,0.1224,4316.5,4316.0,1.0639]
[1757371682100,0.3375,4316.5,4316.4,0.7113]
[1757371682297,0.5331,4316.5,4316.4,0.5123]
[1757371682700,0.8319,4316.5,4316.4,0.2007]
[1757371683201,0.8319,4316.5,4316.2,0.3116]
[1757371683403,0.4107,4316.1,4316.0,0.7463]
[1757371683602,0.7095,4316.1,4316.0,0.7463]
[1757371684006,0.7095,4316.1,4316.0,0.4347]
[1757371684706,0.7095,4316.1,4316.0,0.7463]
[1757371685408,0.7095,4316.1,4316.0,0.9453]
[1757371694012,0.2988,4316.1,4316.0,1.0639]
[1757371694506,0.5139,4316.4,4316.3,0.3997]
[1757371694703,0.5139,4316.4,4316.3,0.7113]
[1757371695511,0.7095,4316.4,4316.3,0.7113]
[1757371695714,1.27183637,4316.4,4316.3,0.7113]
[1757371696807,1.27183637,4316.4,4316.3,1.0019165]
[1757371698617,5.50351638,4316.4,4316.3,0.2906165]
[1757371698917,0.7352,4315.8,4315.7,3.2078]
[1757371702329,0.7352,4315.8,4315.7,3.4144]
[1757371702922,0.7352,4315.8,4315.7,3.7087]
[1757371705331,0.7352,4315.8,4315.7,3.9172]
[1757371705632,0.7352,4315.8,4315.7,0.7094]
[1757371707732,0.7352,4315.1,4315.0,0.5009]
[1757371707927,0.7352,4315.1,4315.0,0.7094]
[1757371712527,3.2078,4315.3,4315.0,0.5437]
[1757371712528,3.5263,4315.3,4315.0,0.5437]
[1757371712735,3.734,4315.3,4315.2,0.4151]
[1757371713035,3.734,4315.3,4315.2,0.7094]
[1757371713435,3.943,4315.3,4315.2,0.7094]
[1757371715339,3.943,4315.3,4315.2,0.2066]
[1757371716042,3.943,4315.3,4315.0,0.2943]
[1757371716335,0.7352,4315.2,4315.1,0.2066]
[1757371716541,0.7352,4315.2,4315.1,0.5009]
[1757371717234,3.2078,4315.9,4315.1,0.7094]
[1757371717434,0.3185,4316.3,4315.8,0.2943]
[1757371717640,0.7352,4316.2,4316.1,0.7094]
[1757371719542,0.7352,4316.2,4316.1,0.4151]
[1757371721344,0.7352,4316.2,4316.1,0.2066]
[1757371721540,0.7352,4316.2,4315.5,0.1286]
[1757371721733,0.7352,4316.2,4315.6,0.2943]
[1757371728745,0.56328992,4316.1,4315.6,0.2943]
[1757371728948,0.7352,4316.2,4315.6,0.2943]
[1757371729246,0.3094,4316.3,4315.6,0.2943]
[1757371729446,0.5119,4316.1,4316.0,0.1972]
[1757371729747,1.27569247,4316.1,4316.0,0.5147]
[1757371733146,1.27569247,4316.1,4316.0,0.1972]
[1757371734144,0.7124,4316.1,4316.0,0.1972]
[1757371735951,0.7124,4316.1,4316.0,0.5147]
[1757371736441,0.7124,4316.1,4316.0,0.7297]
[1757371738953,1.27573365,4316.1,4316.0,0.7297]
[1757371740954,3.2078,4316.4,4316.0,0.8471]
[1757371741155,0.7124,4317.0,4316.9,0.7297]
[1757371741355,1.27597813,4317.0,4316.9,0.7297]
[1757371743153,1.39577813,4317.0,4316.9,0.4122]
[1757371743353,0.7124,4316.7,4316.6,3.2078]
[1757371743557,0.403,4316.1,4316.0,0.7297]
[1757371743758,0.7124,4316.1,4316.0,0.9637]
[1757371743963,0.7124,4316.1,4316.0,0.4312]
[1757371744162,0.7124,4316.1,4316.0,0.1972]
[1757371745062,0.7124,4316.1,4316.0,0.5147]
[1757371745364,0.3094,4315.3,4315.2,3.2078]
[1757371745558,0.7124,4315.3,4315.2,3.405]
[1757371745859,0.7124,4315.3,4315.2,3.7225]
[1757371747462,0.7124,4315.3,4315.2,3.405]
[1757371747963,0.7124,4315.3,4315.2,3.7225]
[1757371748161,0.7124,4315.3,4315.1,0.234]
[1757371748667,0.56363365,4315.2,4315.1,0.234]
[1757371748957,1.27603365,4315.2,4315.1,0.234]
[1757371749760,1.27603365,4315.2,4314.6,3.5253]
[1757371749962,0.7124,4314.7,4314.6,3.9375]
[1757371754368,0.5119,4314.7,4314.6,3.9375]
[1757371755068,0.5119,4314.7,4314.6,0.7297]
[1757371756772,3.2078,4315.8,4315.2,0.4171]
[1757371756968,0.7289,4315.9,4315.8,0.7275]
[1757371757168,3.9367,4315.9,4315.8,0.7275]
[1757371765781,3.9367,4315.9,4315.8,0.2016]
[1757371765987,0.7289,4315.2,4315.1,0.512]
[1757371766181,0.7289,4315.2,4315.1,0.9615]
[1757371768187,0.7289,4315.8,4315.7,0.7275]
[1757371768387,0.7289,4315.8,4315.7,0.9615]
[1757371776289,0.7289,4315.8,4315.7,0.234]
[1757371776493,0.7289,4315.8,4315.0,0.1283]
[1757371776494,0.4158,4315.0,4314.9,3.9353]
[1757371776694,0.7289,4315.0,4314.9,3.9353]
[1757371776991,0.1302,4315.5,4314.9,3.6249]
[1757371776992,0.3131,4315.4,4314.9,3.6249]
[1757371777192,0.7289,4315.4,4315.3,0.7275]
[1757371777589,0.7289,4315.4,4315.3,0.4171]
[1757371778497,0.7289,4315.4,4315.3,0.7275]
[1757371780684,0.3131,4315.8,4315.4,0.3104]
[1757371780889,0.96062,4315.8,4315.7,0.7275]
[1757371781085,1.29258503,4315.8,4315.7,0.7275]
[1757371784300,0.56368503,4315.8,4315.7,0.7275]
[1757371785000,0.2109,4315.8,4315.7,0.4171]
[1757371785203,0.524,4315.8,4315.7,0.7275]
[1757371785703,1.08837466,4315.8,4315.7,0.7275]
[1757371786301,1.08837466,4315.8,4315.7,0.9615]
[1757371786501,1.29327466,4315.8,4315.7,0.9615]
[1757371802408,1.29327466,4315.8,4315.2,0.3]
[1757371802609,0.1247,4316.0,4314.9,3.2078]
[1757371802610,0.8583,4315.0,4314.9,3.9187]
[1757371802804,3.2078,4315.6,4315.4,0.7109]
[1757371803001,0.3165,4315.8,4315.7,0.7109]
[1757371803202,0.88045317,4315.8,4315.7,0.7109]
[1757371803913,1.09215317,4315.8,4315.7,0.7109]
[1757371805417,1.29755317,4315.8,4315.7,0.7109]
[1757371807416,1.29755317,4315.8,4315.5,0.234]
[1757371807613,0.4171,4315.6,4315.5,0.234]
[1757371807919,0.7336,4315.6,4315.5,0.234]
[1757371809325,1.29782104,4315.6,4315.5,0.234]
[1757371810819,1.29782104,4315.6,4315.5,0.7406]
[1757371811222,1.29782104,4315.6,4315.5,0.4406]
[1757371811533,1.29782104,4315.6,4315.5,0.234]
[1757371812029,0.1247,4315.0,4314.9,3.2078]
[1757371812229,0.8583,4315.0,4314.8,0.234]
[1757371812827,0.7336,4314.9,4314.8,0.234]
[1757371813618,0.4171,4314.6,4314.5,0.6449]
[1757371813824,0.7336,4314.6,4314.5,0.9449]
[1757371835042,0.7336,4314.6,4314.5,0.2066]
[1757371835244,0.7268,4314.6,4314.5,0.234]
[1757371835744,0.7268,4314.6,4314.5,0.449]
[1757371835945,0.7268,4314.6,4314.5,0.7586]
[1757371836440,0.7268,4314.6,4314.5,0.9668]
[1757371841542,0.7268,4314.6,4313.6,2.07503173]
[1757371841543,0.7268,4314.6,4314.2,0.3096]
[1757371841742,0.7261,4314.0,4313.9,0.7328]
[1757371841942,0.7261,4314.0,4313.9,0.9668]
[1757371846553,0.1226,4314.5,4313.9,0.9668]
[1757371846753,0.97553168,4314.4,4314.3,0.1965]
[1757371846953,1.29923168,4314.4,4314.3,0.7327]
[1757371847158,0.7354,4314.4,4314.3,0.7327]
[1757371852655,0.7354,4314.4,4314.3,0.4305]
[1757371856767,0.4117,4313.9,4313.8,3.2078]
[1757371856953,0.7354,4313.9,4313.8,3.2078]
[1757371857158,0.7354,4313.9,4313.8,3.4043]
[1757371857360,0.7354,4313.9,4313.8,3.7065]
[1757371857755,0.7354,4313.9,4313.8,3.9102]
[1757371860063,0.5202,4313.9,4313.8,3.9102]
[1757371860565,0.3237,4314.4,4313.8,3.608]
[1757371860760,0.7354,4314.4,4314.3,0.7024]
[1757371861065,1.29902028,4314.4,4314.3,0.7024]
[1757371861559,1.29902028,4314.4,4314.3,0.1965]
[1757371861762,0.97532028,4314.4,4314.0,0.234]
[1757371861960,0.7354,4314.2,4314.1,0.4987]
[1757371866368,0.7354,4314.2,4314.1,0.1965]
[1757371866966,0.7354,4314.2,4314.1,0.4987]
[1757371868368,0.7354,4314.2,4314.1,0.1965]
[1757371868668,0.5387,4313.5,4313.1,0.3022]
[1757371868974,0.7354,4313.4,4313.3,0.7024]
[1757371872183,0.3237,4313.9,4313.4,0.3022]
[1757371872377,0.7354,4313.5,4313.4,0.7024]
[1757371872578,0.7354,4313.5,4313.4,0.9364]
[1757371873485,0.8624,4313.5,4313.4,0.9364]
[1757371874279,0.8624,4313.5,4313.4,0.234]
[1757371874683,1.42528924,4313.5,4313.4,0.234]
[1757371875179,1.42528924,4313.5,4313.0,0.234]
[1757371875483,0.4117,4313.1,4313.0,0.7327]
[1757371875686,0.7354,4313.1,4313.0,0.7327]
[1757371876990,0.7354,4313.1,4313.0,0.9364]
[1757371878191,0.7354,4313.1,4313.0,0.6342]
[1757371879089,0.7354,4313.1,4313.0,0.4305]
[1757371880090,0.7354,4313.1,4313.0,0.926]
[1757371882190,0.7354,4313.1,4313.0,0.1965]
[1757371882386,0.7344,4312.9,4312.8,0.17621758]
[1757371882586,0.7344,4312.8,4312.7,0.408]
[1757371882788,1.2963361,4312.8,4312.7,0.707]
[1757371883294,3.5298,4313.1,4312.7,0.408]
[1757371883488,3.7334,4313.1,4313.0,0.707]
[1757371883889,0.5256,4313.4,4313.3,0.707]
[1757371884291,0.7344,4313.4,4313.3,0.707]
[1757371895599,3.2078,4313.6,4313.5,0.1269]
[1757371895600,3.5298,4313.6,4313.5,0.1269]
[1757371895899,0.5256,4313.9,4313.8,0.408]
[1757371896101,0.5256,4313.9,4313.8,0.707]
[1757371896805,0.7344,4313.9,4313.8,0.707]
[1757371898402,0.7344,4313.9,4313.8,0.941]
[1757371898902,0.5256,4313.9,4313.8,0.941]
[1757371901005,0.322,4314.4,4313.8,0.642]
[1757371901303,0.5256,4314.4,4314.3,0.707]
[1757371901508,0.5256,4314.4,4314.3,0.941]
[1757371902305,0.7344,4314.4,4314.3,0.941]
[1757371918120,0.1193,4314.0,4313.9,0.3123]
[1757371918320,0.2954,4313.9,4313.6,3.5201]
[1757371918523,0.7207,4313.7,4313.6,3.9219]
[1757371918726,0.5111,4313.7,4313.6,3.9219]
[1757371921125,0.5111,4313.7,4313.6,4.1559]
[1757371924926,0.7207,4313.7,4313.6,4.1559]
[1757371926433,0.7207,4313.7,4313.6,0.9481]
[1757371926619,0.7207,4313.7,4313.0,3.3347]
[1757371926620,0.7207,4313.1,4313.0,3.6096]
[1757371926930,0.8366,4313.1,4313.0,3.8436]
[1757371927130,0.8366,4313.1,4313.0,4.1559]
[1757371927832,0.1159,4313.1,4313.0,4.278]
[1757371928231,0.627,4313.1,4313.0,4.278]
[1757371930930,0.1159,4313.1,4313.0,4.278]
[1757371931832,0.627,4313.1,4313.0,4.278]
[1757371934936,0.627,4313.1,4313.0,4.1559]
[1757371935235,0.8366,4313.1,4313.0,4.1559]
[1757371936640,0.8366,4313.1,4313.0,0.9481]
[1757371944648,0.5412,4313.1,4312.6,0.3083]
[1757371944840,0.5202,4312.7,4312.6,0.64627]
[1757371945149,0.3188,4312.9,4312.8,0.4144]
[1757371945353,0.3188,4312.9,4312.8,0.7227]
[1757371945555,0.5202,4312.9,4312.8,0.7227]
[1757371945849,0.7206,4312.9,4312.8,0.7227]
[1757371946048,0.8365,4312.9,4312.8,0.7227]
[1757371949450,0.6361,4312.9,4312.8,0.7227]
[1757371953559,0.8365,4312.9,4312.8,0.7227]
[1757371958561,0.8365,4312.9,4312.8,0.4144]
[1757371958758,0.1188,4312.5,4312.4,3.2078]
[1757371958963,0.4018,4312.2,4312.1,0.7227]
[1757371959265,0.8394,4312.0,4311.9,0.7227]
[1757371959463,0.8394,4312.0,4311.9,0.9567]
[1757371960067,0.8365,4312.0,4311.9,0.9567]
[1757371960760,0.8365,4312.0,4311.8,3.2078]
[1757371960761,0.3188,4311.9,4311.8,3.2078]
[1757371960955,0.3188,4311.9,4311.8,3.4418]
[1757371961153,0.5202,4311.9,4311.8,3.8562]
[1757371961358,0.5202,4311.9,4311.8,4.1645]
[1757371965775,0.1159,4312.0,4311.9,0.7227]
[1757371966769,0.4315,4312.0,4311.9,0.7227]
[1757371968170,0.1159,4312.0,4311.9,0.7227]
[1757371970865,0.6277,4312.0,4311.9,0.7227]
[1757371971070,0.826,4312.0,4311.9,0.7227]
[1757371977573,0.9446,4312.0,4311.9,0.4374]
[1757371978679,0.9446,4312.0,4311.9,0.7496]
[1757371979680,0.9446,4312.0,4311.9,0.9462]
[1757371980474,0.1159,4312.0,4311.9,0.9462]
[1757371980675,0.4315,4312.0,4311.9,0.9462]
[1757371980881,0.6277,4312.0,4311.9,0.9462]
[1757371982672,0.826,4312.0,4311.9,0.9462]
[1757371982878,0.9446,4312.0,4311.9,0.9462]
[1757371984986,0.826,4312.0,4311.9,0.9462]
[1757371986287,0.1159,4312.0,4311.9,0.9462]
[1757371986588,0.1159,4312.0,4311.9,5.17811]
[1757371986789,0.5118,4312.9,4312.8,0.3953]
[1757371986991,0.5118,4312.9,4312.8,0.9415]
[1757371987787,0.7101,4312.9,4312.8,0.4327]
[1757371988182,0.7101,4312.9,4312.8,0.234]
[1757371991092,0.7101,4312.9,4312.8,0.4327]
[1757371992187,0.7101,4312.9,4312.8,0.234]
[1757371993490,0.7101,4312.9,4312.8,0.4327]
[1757371995789,0.7101,4312.9,4312.8,0.7449]
[1757371996693,0.7101,4312.9,4312.8,0.4327]
[1757371998194,0.7101,4312.9,4312.8,0.9482]
[1757371998491,0.7101,4312.9,4312.8,0.6454]
[1757372005500,0.7101,4312.9,4312.8,0.4327]
[1757372007198,0.1271,4312.5,4311.8,3.5106]
[1757372007401,0.1271,4312.5,4311.9,0.4336]
[1757372007402,0.8328,4312.0,4311.9,0.4336]
[1757372007596,0.8328,4312.0,4311.9,0.9491]
[1757372014106,0.7057,4312.0,4311.9,0.9491]
[1757372019412,0.7057,4312.0,4311.9,0.7151]
[1757372019612,0.7057,4312.0,4311.9,0.9491]
[1757372021816,0.7057,4312.0,4311.9,0.7151]
[1757372022010,0.7057,4312.0,4311.9,0.9491]
[1757372026919,0.5005,4312.0,4311.9,0.9491]
[1757372030318,0.5346,4312.5,4312.4,0.1975]
[1757372030518,0.5346,4312.5,4312.4,0.4315]
[1757372030915,0.8277,4312.5,4312.4,0.4315]
[1757372031922,0.8277,4312.5,4312.4,0.9534]
[1757372033014,0.7006,4312.5,4312.4,0.9534]
[1757372034222,0.4929,4312.5,4312.4,0.9534]
[1757372035221,0.1188,4313.0,4312.4,0.9534]
[1757372035424,0.8194,4313.0,4312.9,0.4094]
[1757372035624,1.38123299,4313.0,4312.9,0.9534]
[1757372037822,1.38123299,4313.0,4312.9,0.4315]
[1757372039725,1.38123299,4313.0,4312.9,0.234]
[1757372040127,1.38123299,4313.0,4312.7,0.31]
[1757372040326,0.8194,4313.0,4312.8,0.234]
[1757372043529,0.8194,4313.0,4312.9,0.1975]
[1757372044540,0.8194,4313.0,4312.8,0.234]
[1757372045434,0.4075,4312.4,4311.9,0.31]
[1757372045634,0.8292,4312.0,4311.9,0.5075]
[1757372045837,0.8292,4312.0,4311.9,0.7405]
[1757372046732,0.8292,4312.0,4311.9,0.1975]
[1757372046938,0.8292,4312.0,4311.9,0.4305]
[1757372047134,0.8292,4312.0,4311.9,0.7405]
[1757372049551,0.8292,4312.0,4311.9,0.5075]
[1757372049846,0.8292,4312.0,4311.0,33.5291]
[1757372049847,0.7006,4311.1,4311.0,33.717]
[1757372050047,0.7006,4311.1,4311.0,34.0681]
[1757372052950,0.4929,4311.1,4311.0,34.0681]
[1757372054449,0.1998,4311.1,4311.0,34.0681]
[1757372057058,0.5217,4311.1,4311.0,33.7043]
[1757372057358,0.5217,4311.1,4311.0,33.9373]
[1757372057561,0.5217,4311.1,4311.0,34.0546]
[1757372057952,0.1998,4311.1,4311.0,34.0546]
[1757372058348,0.3219,4311.3,4311.2,0.4126]
[1757372058555,0.5314,4311.3,4311.2,0.9429]
[1757372061557,0.7301,4311.3,4311.2,0.9429]
[1757372072762,0.5314,4311.9,4311.8,0.4126]
[1757372072958,0.5314,4311.9,4311.8,0.7099]
[1757372074264,0.7301,4311.9,4311.8,0.7099]
[1757372076261,1.35143611,4313.0,4311.8,0.7099]
[1757372076262,0.3219,4312.8,4312.4,0.7099]
[1757372076567,0.5314,4312.9,4312.8,0.7099]
[1757372076769,0.5314,4312.9,4312.8,0.9429]
[1757372076770,0.7301,4312.9,4312.8,0.9429]
[1757372082277,0.5314,4312.9,4312.8,0.9429]
[1757372082866,0.3219,4313.1,4312.8,0.9429]
[1757372083069,0.5314,4313.1,4313.0,0.1173]
[1757372083362,0.5314,4313.1,4313.0,0.8272]
[1757372084871,0.7301,4312.9,4312.8,0.7406]
[1757372085570,0.7301,4312.9,4312.8,0.9429]
[1757372091974,0.7301,4312.9,4312.8,0.7406]
[1757372092479,0.7301,4312.9,4312.8,0.9373]
[1757372098782,0.7301,4312.9,4312.8,0.7406]
[1757372098987,0.4241,4312.6,4312.5,0.3054]
[1757372099285,0.717,4312.6,4312.5,0.7398]
[1757372099687,0.717,4312.6,4312.5,0.9365]
[1757372099889,0.717,4312.6,4312.5,1.0586]
[1757372100185,3.2078,4313.3,4312.5,0.7532]
[1757372100384,0.717,4313.2,4313.1,0.7035]
[1757372100585,0.717,4313.2,4313.1,0.9365]
[1757372102092,0.717,4313.2,4313.1,0.233]
[1757372102996,0.1186,4312.5,4312.2,0.3054]
[1757372103185,0.4241,4312.1,4312.0,0.5068]
[1757372103386,0.717,4312.1,4312.0,0.7398]
[1757372105693,0.717,4312.1,4312.0,0.4344]
[1757372105995,0.717,4312.1,4312.0,0.7398]
[1757372107390,0.717,4312.1,4312.0,0.9365]
[1757372109999,0.717,4312.1,4312.0,0.233]
[1757372111803,0.717,4311.4,4311.3,3.7146]
[1757372111995,0.717,4311.4,4311.3,3.9476]
[1757372112192,0.717,4311.4,4311.3,3.9113]
[1757372112397,0.717,4311.4,4311.3,4.1443]
[1757372129511,0.717,4311.4,4311.3,3.4092]
[1757372129705,0.717,4311.4,4311.0,33.5291]
[1757372129706,4.717,4311.4,4311.2,0.233]
[1757372130003,0.5294,4311.3,4311.2,0.233]
[1757372130210,1.07145001,4311.3,4311.2,0.233]
[1757372130705,0.8395,4311.3,4311.2,0.233]
[1757372131610,0.8395,4311.3,4311.2,0.7618]
[1757372136519,0.8395,4311.3,4311.2,0.9699]
[1757372137117,0.1159,4311.3,4311.2,0.9699]
[1757372138118,0.6418,4311.3,4311.2,0.9699]
[1757372139116,0.8395,4311.3,4311.2,0.9699]
[1757372145721,0.6418,4311.3,4311.2,0.9699]
[1757372145918,0.3317,4311.3,4311.2,0.9699]
[1757372146418,0.1159,4311.3,4311.2,0.9699]
[1757372147423,1.39503939,4311.3,4311.2,0.233]
[1757372147624,1.39503939,4311.3,4310.6,0.233]
[1757372147919,0.719,4310.8,4310.7,0.7313]
[1757372153010,0.719,4310.8,4310.7,0.2167]
[1757372153217,0.719,4310.8,4310.5,0.5404]
[1757372153417,0.4193,4310.6,4310.5,0.7571]
[1757372153721,0.719,4310.6,4310.5,0.7571]
[1757372154720,0.719,4310.6,4310.5,0.9643]
[1757372155628,0.8349,4310.6,4310.5,1.0898]
[1757372163224,0.1159,4310.6,4310.5,1.0898]
[1757372164029,0.6265,4310.6,4310.5,1.0898]
[1757372165126,0.3268,4310.6,4310.5,1.0898]
[1757372166442,0.1159,4310.6,4310.5,1.0898]
[1757372171031,0.6265,4310.6,4310.5,1.0898]
[1757372171530,0.8349,4310.6,4310.5,0.7313]
[1757372171727,0.8349,4310.6,4310.5,0.9643]
[1757372175733,0.8349,4310.6,4310.5,0.233]
[1757372176029,0.8349,4310.6,4310.5,0.7571]
[1757372180033,0.8349,4310.6,4310.5,0.5241]
[1757372182736,0.1298,4310.5,4310.2,0.233]
[1757372182923,0.717,4310.5,4310.4,0.7063]
[1757372183629,3.2078,4311.2,4311.1,0.7063]
[1757372183630,3.9248,4311.2,4311.1,0.7063]
[1757372183831,4.48625959,4311.2,4311.1,0.5904]
[1757372184334,1.27845959,4311.2,4311.1,0.5904]
[1757372185535,1.27831187,4311.2,4311.1,0.5904]
[1757372186338,0.717,4311.2,4311.1,0.5904]
[1757372186932,1.27820018,4311.2,4311.1,0.5904]
[1757372187534,0.717,4311.2,4311.1,0.5904]
[1757372193739,0.5107,4311.2,4311.1,0.5904]
[1757372194033,0.2152,4311.6,4311.2,0.2935]
[1757372194242,0.5107,4311.4,4311.3,0.6458]
[1757372194839,0.5107,4311.4,4311.3,0.9393]
[1757372197341,0.1298,4312.0,4311.9,0.7063]
[1757372197546,0.2152,4312.0,4311.9,0.7063]
[1757372197734,0.77604293,4312.0,4311.9,0.7063]
[1757372197935,1.27784293,4312.0,4311.9,0.7063]
[1757372198540,1.40764293,4312.0,4311.9,0.7063]
[1757372200742,0.8468,4312.0,4311.9,0.7063]
[1757372202347,0.8468,4312.0,4311.7,0.233]
[1757372202548,0.56057613,4311.9,4311.7,0.233]
[1757372202741,0.717,4311.8,4311.7,0.233]
[1757372205147,1.27737989,4311.8,4311.7,0.233]
[1757372205341,1.27740031,4311.8,4311.7,0.233]
[1757372205749,0.717,4311.8,4311.7,0.233]
[1757372205946,1.277342,4311.8,4311.7,0.233]
[1757372206853,0.717,4311.8,4311.2,0.2935]
[1757372210252,0.717,4311.8,4311.7,0.1995]
[1757372210452,1.27720047,4311.8,4311.7,0.1995]
[1757372214052,1.27720047,4311.8,4311.7,0.7173]
[1757372216461,1.27720047,4311.8,4311.7,0.4064]
[1757372216758,1.27720047,4311.8,4311.7,0.7173]
[1757372231081,0.56020047,4311.8,4311.7,0.7173]
[1757372231275,0.56020047,4311.8,4311.7,0.9503]
[1757372231781,0.87480047,4311.8,4311.7,0.9503]
[1757372231974,1.08390047,4311.8,4311.7,0.9503]
[1757372232575,1.08390047,4311.8,4311.6,0.233]
[1757372232576,1.28280047,4311.8,4311.6,0.233]
[1757372232776,0.9700497,4311.7,4311.6,0.233]
[1757372232984,0.408,4311.4,4311.3,0.7434]
[1757372233185,0.7226,4311.4,4311.3,0.7434]
[1757372233481,0.7226,4311.4,4311.3,0.9503]
[1757372233886,0.5237,4311.4,4311.3,0.9503]
[1757372234588,0.1194,4312.0,4311.3,0.9503]
[1757372234784,1.08580446,4311.9,4311.8,0.7173]
[1757372234984,1.28470446,4311.9,4311.8,0.7173]
[1757372250600,1.08580446,4311.9,4311.8,0.7173]
[1757372251598,1.28510446,4311.9,4311.8,0.7173]
[1757372256002,1.28523654,4311.9,4311.8,0.7173]
[1757372264311,0.5024,4312.2,4312.1,0.4045]
[1757372264509,1.06489023,4312.2,4312.1,0.7055]
[1757372267512,1.26419023,4312.2,4312.1,0.7055]
[1757372270414,0.7017,4312.2,4312.1,0.7055]
[1757372272210,0.5024,4312.2,4312.1,0.7055]
[1757372272615,3.2078,4312.6,4312.1,0.7055]
[1757372272821,0.519,4312.5,4312.4,0.7147]
[1757372273019,0.7172,4312.5,4312.4,0.7147]
[1757372275122,0.8361,4312.5,4312.4,0.7147]
[1757372284024,0.519,4312.5,4312.4,0.94659]
[1757372284224,0.1298,4313.0,4312.4,0.94659]
[1757372284428,0.847,4313.0,4312.9,0.2078]
[1757372284625,0.847,4313.0,4312.9,0.4408]
[1757372295536,0.847,4313.0,4312.9,0.7406]
[1757372296933,0.847,4313.0,4312.9,0.9477]
[1757372297127,0.7172,4313.0,4312.9,0.9477]
[1757372299533,0.838,4313.0,4312.9,0.9477]
[1757372305333,0.7172,4313.0,4312.9,0.9477]
[1757372306336,1.27547045,4313.0,4312.9,0.9477]
[1757372308744,1.39627045,4313.0,4312.9,0.9477]
[1757372311841,1.62813045,4313.0,4312.4,0.3248]
[1757372312141,0.8545,4312.0,4311.9,0.5283]
[1757372312340,0.8545,4312.0,4311.9,0.9724]
[1757372312635,0.8545,4312.0,4311.9,1.20431]